Cogmind - Beta 13 @@@ ROGUE MODE // 2024.03.06 @ 15:49:11 Player: SX_7 Result: Destroyed by 18-DJJ(R) with Subdweller Beam Cannon Performance ------------- Evolutions (0) 0 Regions Visited (2) 400 Robots Destroyed (27) 135 Value Destroyed (314) 314 Prototype IDs (0) 0 Alien Tech Used (0) 0 Bonus (0) 0 TOTAL SCORE: 849 Bonus ------- None Cogmind --------- Core Integrity 0/250 Matter 157/300 Energy 100/100 System Corruption 0% Temperature Cool (9) Movement Core (300) Ox5 Location -10/Subcaves Parts ------- > --- POWER (1) -------- (None) > --- PROPULSION (2) --- (None) > --- UTILITY (2) ------ Medium Storage Unit > --- WEAPON (2) ------- Light Cannon Light Cannon > --- INVENTORY (10) --- Small Storage Unit Structural Scanner Improved Terrain Scanner EM Pulse Gun Light Cannon Grenade Launcher Datajack Peak State ------------ > --- POWER ------------ Ion Engine > --- PROPULSION ------- Aluminum Leg Aluminum Leg > --- UTILITY ---------- Medium Storage Unit Seismic Detector > --- WEAPON ----------- Small Laser Small Laser > --- INVENTORY -------- Light Ion Engine Small Storage Unit Signal Interpreter Improved Terrain Scanner EM Pulse Gun Light Cannon Light Cannon Grenade Launcher [Rating: 8] Favorites ----------- Power Ion Engine Engine Ion Engine Propulsion Aluminum Leg Leg Aluminum Leg Wheel Compact Wheel Utility Medium Storage Unit Device Seismic Detector Storage Medium Storage Unit Processor Signal Interpreter Weapon Light Cannon Energy Gun EM Pulse Gun Ballistic Cannon Light Cannon Special Melee Weapon Datajack Build | -11 -10 -10 ------- Run | Yrd Mat Sub Slots Evolved . | . . . Power . | . . . Propulsion . | . . . Utility . | . . . Weapon . | . . . Parts Attached 22 | 10 8 4 Power 3 | 1 1 1 Engine 3 | 1 1 1 Core . | . . . Reactor . | . . . Propulsion 3 | 3 . . Treads . | . . . Leg 2 | 2 . . Wheel 1 | 1 . . Hover . | . . . Flight . | . . . Utility 6 | 2 3 1 Device 3 | 1 1 1 Storage 2 | 1 1 . Processor 1 | . 1 . Hackware . | . . . Protection . | . . . Artifact . | . . . Weapon 10 | 4 4 2 Energy Gun 6 | 4 2 . Energy Cannon . | . . . Ballistic Gun . | . . . Ballistic Cannon 3 | . 2 1 Launcher . | . . . Special Weapon . | . . . Impact Weapon . | . . . Slashing Weapon . | . . . Piercing Weapon . | . . . Special Melee Weapon 1 | . . 1 Unidentified Prototypes . | . . . Parts Lost 7 | . 2 5 Power 2 | . . 2 Propulsion 2 | . . 2 Utility 2 | . 1 1 Weapon 1 | . 1 . Highest Loss Streak 3 | . 2 3 To Critical Strikes . | . . . Average Slot Usage (%) 94 | . 98 82 Engine 13 | . 14 12 Leg 24 | . 28 14 Device 9 | . 13 1 Storage 14 | . 14 14 Processor 3 | . . 11 Energy Gun 9 | . 13 . Ballistic Cannon 17 | . 14 26 Naked Turns . | . . . Heaviest Build 22 | 15 22 22 Greatest Support 20 | 20 20 20 Greatest Overweight (x) 7 | . 1 7 Average Overweight (x) . | . . 1 Largest Inventory Capacity 10 | 8 10 10 Average Capacity 9 | 7 9 10 Most Carried 9 | 4 9 9 Average Carried 5 | 1 6 7 Final Capacity 10 | 8 10 10 Final Carried 9 | 3 9 7 Class Distribution -------------------- 100% | Mutant Dominant Class ---------------- Mutant | -10/Materials Mutant | -10/Subcaves Resources | -11 -10 -10 ----------- Run | Yrd Mat Sub Matter Collected 538 | 280 192 66 Remotely . | . . . Salvage Created 625 | 320 247 58 Parts 50 | 19 26 5 Haulers Intercepted . | . . . Recyclers Shooed . | . . . Parts Field Recycled . | . . . Retrieved Matter . | . . . Parts Self-Destructed 12 | . . 12 Prevented . | . . . Kills | -11 -10 -10 ------- Run | Yrd Mat Sub Combat Hostiles Destroyed 11 | . 9 2 Guns 3 | . 3 . Cannons 8 | . 6 2 Classes Destroyed 7 | 3 3 1 Worker 2 | 2 . . Tunneler 8 | 8 . . Recycler 2 | 1 1 . Operator 2 | . 2 . Watcher 2 | . 2 . Swarmer 9 | . 9 . Subdweller 2 | . . 2 Best Kill Streak 7 | 7 4 2 Combat Bots Only 4 | . 4 2 Max Kills in Single Turn 1 | 1 1 1 Gunslinging . | . . . Exploded . | . . . Melee . | . . . Uniques/NPCs Destroyed . | . . . Combat | -11 -10 -10 -------- Run | Yrd Mat Sub Hostile Shots Fired 78 | . 38 40 Missed 23 | . 11 12 Damage Taken 955 | 63 208 684 Core 255 | 16 45 194 Absorbed by Shields . | . . . Core Remaining (%) 93 | 93 . . Volleys Fired 96 | 31 52 13 Largest 2 | 2 2 2 Hottest 80 | 80 80 70 Shots Fired 173 | 45 102 26 Gun 99 | 45 54 . Cannon 74 | . 48 26 Launcher . | . . . Special . | . . . Kinetic 74 | . 48 26 Thermal 43 | 17 26 . Explosive . | . . . Electromagnetic 56 | 28 28 . Robot Hit Streak 11 | 6 3 11 Robot Miss Streak 8 | 2 8 1 Penetration Max . | . . . Secondary Targets . | . . . Shots Hit Robots 101 | 30 41 30 Core Hits 30 | 12 14 4 Critical Kills . | . . . Critical Parts Destroyed . | . . . Critical Strikes 1 | . . 1 Blast 1 | . . 1 Melee Attacks 9 | . . 9 Impact . | . . . Slashing . | . . . Piercing . | . . . Sneak Attacks . | . . . Combat Hostiles . | . . . Follow-up Attacks . | . . . Damage Inflicted 1521 | 553 621 347 Guns 647 | 383 264 . Cannons 704 | . 357 347 Explosions 170 | 170 . . Melee . | . . . Ramming . | . . . Kinetic 704 | . 357 347 Thermal 425 | 294 131 . Explosive . | . . . Electromagnetic 392 | 259 133 . Impact . | . . . Slashing . | . . . Piercing . | . . . Highest Corruption . | . . . Average Corruption . | . . . Corruption Purged . | . . . Corruption Blocked . | . . . Overload Shots . | . . . Overflow Damage 55 | 25 30 . Projectiles 30 | . 30 . Explosions 25 | 25 . . Melee . | . . . Knockbacks 4 | . 2 2 Impact . | . . . Kinetic 4 | . 2 2 Secondary . | . . . Self-Inflicted Damage 64 | 64 . . Shots 2 | 2 . . Rammed . | . . . Targets Rammed . | . . . Kicked . | . . . Crushed . | . . . Highest Temperature 178 | 102 178 . Average Temperature 44 | 44 45 . Received Heat Transfer 126 | . . 126 Siege Activations . | . . . Robots Corrupted . | . . . Combat Hostiles . | . . . Parts Fried 2 | 1 1 . Impact Corruptions . | . . . Robots Melted . | . . . Combat Hostiles . | . . . Parts Melted 1 | 1 . . Heat Transferred 725 | 425 300 . Parts Sabotaged . | . . . Parts Stolen . | . . . Parts Stripped . | . . . Power Chain Reactions 3 | 3 . . Alert | -11 -10 -10 ------- Run | Yrd Mat Sub Peak Influence 212 | 55 212 . Initial 35 | . 35 . Average 77 | 23 92 . Maximum Alert Level 1 | . 1 . Low Security (%) 99 | 100 99 . Level 1 . | . . . Level 2 . | . . . Level 3 . | . . . Level 4 . | . . . Level 5 . | . . . High Security . | . . . Max Security . | . . . Squads Dispatched 2 | . 2 . Investigation . | . . . Extermination . | . . . Reinforcement 2 | . 2 . Assault . | . . . Garrison . | . . . Intercept . | . . . Searches Triggered . | . . . Construction Impeded . | . . . Haulers Reinforced . | . . . Active Scanning Responses . | . . . Cargo Convoy Interrupts . | . . . Stealth | -11 -10 -10 --------- Run | Yrd Mat Sub Distress Signals . | . . . Communications Jammed . | . . . Distress Signals . | . . . Times Spotted 23 | . 20 3 Peak Tracking Total 3 | . 3 2 Tactical Retreats 1 | . 1 . Traps | -11 -10 -10 ------- Run | Yrd Mat Sub Traps Triggered . | . . . Indirectly . | . . . Trap Hack Attempts . | . . . Triggered . | . . . Disarmed . | . . . Reprogrammed . | . . . Reused . | . . . Traps Extracted . | . . . Installed . | . . . Triggered . | . . . Machines | -11 -10 -10 ---------- Run | Yrd Mat Sub Machines Disabled 2 | . 2 . Max in Single Turn 1 | . 1 . Machines Repaired . | . . . Machines Dismantled . | . . . Machines Sabotaged . | . . . Overloaded Fab Kills . | . . . Hacking | -11 -10 -10 --------- Run | Yrd Mat Sub Machines Accessed 6 | . 6 . Terminals 5 | . 5 . Fabricators . | . . . Repair Stations . | . . . Recycling Units 1 | . 1 . Scanalyzers . | . . . Garrison Access . | . . . Total Hacks 19 | . 19 . Successful 11 | . 11 . Failed 8 | . 8 . Catastrophic 6 | . 6 . Database Lockouts . | . . . Manual 18 | . 18 . Terminals 16 | . 16 . Fabricators . | . . . Repair Stations . | . . . Recycling Units 3 | . 3 . Scanalyzers . | . . . Garrison Access . | . . . Terminal Hacks 3 | . 3 . Robot Schematic 1 | . 1 . Terminal Index 1 | . 1 . Hauler Manifests 1 | . 1 . Fabricator Hacks . | . . . Repair Station Hacks . | . . . Recycling Unit Hacks . | . . . Scanalyzer . | . . . Garrison Access Hacks . | . . . Unauthorized Hacks 8 | . 8 . Terminals 7 | . 7 . Track 3 | . 3 . Botnet 4 | . 4 . Fabricators . | . . . Repair Stations . | . . . Recycling Units 1 | . 1 . Reject 1 | . 1 . Scanalyzers . | . . . Garrison Access . | . . . Data Cores Recovered 1 | . 1 . Used . | . . . Hacking Detections 6 | . 6 . Full Trace Events . | . . . Feedback Events . | . . . Feedback Blocked . | . . . Robot Schematics Acquired 1 | . 1 . Robots Built . | . . . Authchips . | . . . Time . | . . . Total Robot Build Rating . | . . . Part Schematics Acquired . | . . . Parts Built . | . . . Authchips . | . . . Time . | . . . Total Part Build Rating . | . . . Parts Repaired . | . . . Time . | . . . Parts Recycled . | . . . Recycled Matter . | . . . Retrieved Matter . | . . . Retrieved Components . | . . . Parts Scanalyzed . | . . . Part Schematics Acquired . | . . . Parts Damaged . | . . . Bothacking | -11 -10 -10 ------------ Run | Yrd Mat Sub Used RIF Installer . | . . . Robots Hacked . | . . . Non-combat . | . . . Combat . | . . . Robot Hacks Applied . | . . . Relay Couplers Released . | . . . Fabnet Peak Effective % . | . . . Robots Rewired . | . . . Allies Hacked . | . . . Hacks Repelled . | . . . Allies | -11 -10 -10 -------- Run | Yrd Mat Sub Total Allies . | . . . Largest Group . | . . . Highest-Rated Group . | . . . Highest-Rated Ally . | . . . Total Orders . | . . . Ally Attacks . | . . . Total Damage . | . . . Kills . | . . . Allies Corrupted . | . . . Allies Melted . | . . . Intel | -11 -10 -10 ------- Run | Yrd Mat Sub Robot Analysis Total . | . . . Derelict Logs Recovered . | . . . Drone Launches . | . . . Drone Recoveries . | . . . Exploration | -11 -10 -10 ------------- Run | Yrd Mat Sub Turns Passed 1435 | 239 859 337 Spaces Moved 774 | 140 515 119 Core 46 | 41 . 5 Treads . | . . . Legs 728 | 99 515 114 Wheels . | . . . Hover . | . . . Flight . | . . . Fastest Speed 50 | 50 120 120 Average Speed 137 | 99 127 229 Slowest Speed 400 | 120 190 400 Overloaded Moves . | . . . Propulsion Burnouts . | . . . Robots Hopped . | . . . Cave-ins Triggered . | . . . Exploration Rate (%) 34 | 6 84 12 Regions Visited 2 Branch Regions 1 Pre-discovered Areas 1 | . . 1 Known Exits Taken 1 | . 1 . Unknown Exits Taken 1 | 1 . . Scrap Searched . | . . . Spaces Dug . | . . . Terrain Destroyed 16 | 16 . . Melee . | . . . Projectile . | . . . AOE 16 | 16 . . Terrain Rammed . | . . . Walls Destroyed . | . . . Machines Disabled . | . . . Actions | -11 -10 -10 --------- Run | Yrd Mat Sub Total 963 | 194 616 153 Wait 33 | . 28 5 Move 772 | 139 514 119 Hop . | . . . Pick Up 24 | 12 11 1 Fast Attach . | . . . Attach 11 | 8 2 1 Detach . | . . . Swap 11 | 2 6 3 Drop 6 | 2 3 1 Fire 96 | 31 52 13 Melee 9 | . . 9 Ram . | . . . Kick . | . . . Crush . | . . . Escape Stasis . | . . . Rewire 1 | . . 1 Trap . | . . . Miscellaneous . | . . . Route ------- -11/Scrapyard -10/Materials (discovered 4 exits: [*Mat] / [*Min x2] / *Sub) -10/Subcaves History --------- Turn | Location | Event 12 | -11/Scrapyard | Discovered new exit (range 16) 240 | -11/Scrapyard | Entered Materials 316 | -10/Materials | Build established: Mutant 554 | -10/Materials | Discovered new exit (range 16) 630 | -10/Materials | Discovered new exit (range 11) 806 | -10/Materials | Discovered new exit (range 10) 1081 | -10/Materials | Discovered new exit (range 8) 1098 | -10/Materials | Identified exit to Subcaves 1099 | -10/Materials | Entered Subcaves 1102 | -10/Subcaves | Ambushed by Subdwellers from Twisted Machinery 1112 | -10/Subcaves | Core integrity fell below 50% 1121 | -10/Subcaves | Learned location of Zion (-7) 1121 | -10/Subcaves | Met a Zionite searching for "candidates" 1394 | -10/Subcaves | Shifting Twisted Machinery released Battle Rifle 1402 | -10/Subcaves | Shifting Twisted Machinery released Sub. Shrapnel Launcher 1421 | -10/Subcaves | Core integrity fell below 20% 1436 | -10/Subcaves | Destroyed by 18-DJJ(R) with Subdweller Beam Cannon Last Messages --------------- 01290_ 9V-AAD(R) system offline. 01292_ Sneak attack on 9V-AAD(R). 01292_ 9V-AAD(R) system offline. 01293_ Sneak attack on 9V-AAD(R). 01293_ 9V-AAD(R) system offline. 01295_ Sneak attack on 9V-AAD(R). 01295_ 9V-AAD(R) system offline. 01296_ Sneak attack on 9V-AAD(R). 01296_ 9V-AAD(R) system offline. 01298_ Sneak attack on 9V-AAD(R). 01298_ 9V-AAD(R) system offline. 01371_ Discarded Signal Interpreter. Battle Rifle falls loose from the Twisted Machinery. 01394_ Aluminum Leg destroyed. 01400_ Seismic Detector destroyed. Sub. Shrapnel Launcher falls loose from the Twisted Machinery. 01414_ 18-DJJ(R) knocked back. 01420_ Ion Engine destroyed. 01429_ 18-DJJ(R) Disposable Heat Sink blasted off. 01432_ 18-DJJ(R) heat short circuits Sub. Power Source. Map ----- +----------------------------------------------------+ | ?????????????????????????????????????????????????? | | ?????????????????????????????????????????????????? | | ?????????????????????????????????????????????????? | | ?????????????????????????????????????????????????? | | ?????????????????????????????????????????????????? | | ?????????????????????????????????????????????????? | | ?????????????????????????????????????????????????? | | ?????????????????????????????????????????????????? | | ?????????????????????????????????????????????????? | | ?????????????????????????????????????????????????? | | ????????????????????????##???????????????????????? | | ???????????????????????? ??????????????????????? | | ???????????????????????# ??????????????????????? | | ??????????????????????? #??????????????????????? | | ?????????????????????### #??????????????????????? | | ??????????????????##?# #??????????????????????? | | ??????????????????]"#" ??????????????????????? | | ?????????????????? "" ???????????????????????? | | ???????????????????"""" ???????????????????????? | | ????????????????????" [ #???????????????????????? | | ????????????????????# #???????????????????????? | | ???????????????????## ##??????????????????????? | | ??????????????????## ##?????????????????????? | | ??????????????????# % ##????????????????????? | | ???????????????????#%%% ## #?????????????????? | | ????????????????????#R @ #??????????????????? | | ???????????????????##%#;;# #??????????????????? | | ???????????????????# ###?#####??????????????????? | | ??????????????????## ##????????????????????????? | | ??????????????????# #????????????????????????? | | ??????????????????## ##???????????????????????? | | ???????????????????# ##??????????????????????? | | ????????????#####??# #??????????????????????? | | ?????????????$$$"#?# #??????????????????????? | | ??????????????? ## ## ####????????????????? | | ??????????####### # #????????????????? | | ??????????# # " #????????????????? | | ??????###??# ## ## ## ### ##????????????????? | | #?##### #??# " "# ##?###??# #?????????????????? | | ### ##??# #???????? ????????????????? | | #??# ##????????? # ???????????????? | | " ##?# ##???????????#?#???????????????? | | ### # ### ##??????????????????????????????? | | #?#### "##???????????????????????????????? | | ##???## ##????????????????????????????????? | | #????## #?????????????????????????????????? | | #?????# ###?????????????????????????????????? | | ???## #???????????????????????????????????? | | # ##???# #??????????????????????????????????? | | # #???? " ?????????????????????????????????? | +----------------------------------------------------+ Best States ------------- Heat Dissipation 25 Energy Generation 10 Energy Capacity 250 Matter Stores 300 Matter Capacity 300 Sight Range 16 Terrain Scan Density 10 Evasion (%) 55 Item Schematics ----------------- None Robot Schematics ------------------ G-34 Mercenary | -10/Materials | Hacked Fabricated ------------ Nothing Alien Tech Used ----------------- None Achievements -------------- None Challenges ------------ None Game ------ Seed HybridLayeredActivator Manual? 0 Play Time 00:16:17 Cumulative 17.1 hours Start 2024.03.06 @ 15:33:00 End 2024.03.06 @ 15:49:11 Sessions 1 Manual Loads 0 Difficulty Rogue Special Mode None Game No. 23 Rogue 22 Adventurer 1 Explorer 0 Win Type - Total 0 Types 0/0/0/0/0/0/0/0/0 Lore% 20 Gallery% 18 Achievement% 20 Wizard Run 0 Options --------- Layout 0 ASCII 0 Keyboard 0 Movement Mouse Keybinds 0 Fullscreen 1 Font 20/X11 Map View 66x50 Zoom Use 0% Tactical HUD 1 Map Filters NONE Filters NONE Steam 1 RUN: 76bbb8e5-9a6e-4944-af9e-ebd5ad896499